bitfinex-derivatives/quotes_BNBF0:USTF0_20250603
["timestamp","ask_amount","ask_price","bid_price","bid_amount"]
[1748963910381,1.47962649,668.8,668.13,0.47016661]
[1748963911182,1.47962649,668.81,668.15,0.47016661]
[1748963911379,1.47962649,668.81,668.17,0.47016661]
[1748963911582,1.47962649,668.81,668.18,0.29932054]
[1748963912178,1.47962649,668.82,668.18,0.76948715]
[1748963912378,1.47962649,668.76,668.38,0.47016661]
[1748963913179,1.47962649,668.77,668.4,0.47016661]
[1748963913486,1.47962649,668.77,668.41,0.47016661]
[1748963913883,1.47962649,668.76,668.41,0.47016661]
[1748963914284,1.47962649,668.77,668.43,0.47016661]
[1748963914482,1.47962649,668.77,668.44,0.47016661]
[1748963915285,1.47962649,668.78,668.45,0.47016661]
[1748963915481,1.47962649,668.78,668.46,0.47016661]
[1748963916386,1.47962649,668.78,668.18,0.29932054]
[1748963916387,1.47962649,668.78,668.48,0.47016661]
[1748963916586,3.72366832,669.43,668.47,0.47016661]
[1748963916587,1.47962649,668.79,668.47,0.47016661]
[1748963917286,1.47962649,668.79,668.49,0.47016661]
[1748963918278,1.47962649,668.79,668.5,0.47016661]
[1748963918684,1.47962649,668.79,668.47,0.47016661]
[1748963918978,1.47962649,668.79,668.18,0.29932054]
[1748963918979,1.47962649,668.79,668.43,0.47016661]
[1748963919182,1.47962649,668.79,668.18,0.29932054]
[1748963919183,1.47962649,668.79,668.46,0.47016661]
[1748963919385,1.47962649,668.78,668.45,0.47016661]
[1748963919585,1.47962649,668.76,668.52,0.47016661]
[1748963919785,1.47962649,668.75,668.52,0.47016661]
[1748963920283,1.47962649,668.75,668.53,0.47016661]
[1748963920485,1.47962649,668.75,668.18,0.29932054]
[1748963920486,1.47962649,668.76,668.51,0.47016661]
[1748963920980,1.47962649,668.76,668.52,0.47016661]
[1748963921185,1.47962649,668.76,668.53,0.47016661]
[1748963921683,1.47962649,668.75,668.53,0.47016661]
[1748963922285,1.47962649,668.75,668.54,0.47016661]
[1748963923186,1.47962649,668.75,668.55,0.47016661]
[1748963923387,1.47962649,668.75,668.54,0.47016661]
[1748963923784,1.47962649,668.76,668.5,0.47016661]
[1748963924182,1.47962649,668.83,668.32,0.47016661]
[1748963924386,1.47962649,668.82,668.31,0.47016661]
[1748963924582,1.47962649,668.82,668.3,0.47016661]
[1748963925188,1.47962649,668.82,668.32,0.47016661]
[1748963925388,0.26044493,669.84,668.3,0.47016661]
[1748963925389,1.47962649,668.81,668.3,0.47016661]
[1748963925787,1.47962649,668.82,668.3,0.47016661]
[1748963925983,1.47962649,668.82,668.32,0.47016661]
[1748963926183,1.47962649,668.82,668.34,0.47016661]
[1748963926690,1.47962649,668.82,668.33,0.47016661]
[1748963927386,1.47962649,668.81,668.34,0.47016661]
[1748963927989,1.47962649,668.81,668.33,0.47016661]
[1748963928186,1.47962649,668.81,668.36,0.47016661]
[1748963928487,1.47962649,668.81,668.35,0.47016661]
[1748963928692,1.47962649,668.8,668.36,0.47016661]
[1748963929293,1.47962649,668.8,668.35,0.47016661]
[1748963929594,1.47962649,668.79,668.35,0.47016661]
[1748963929793,1.47962649,668.8,668.36,0.47016661]
[1748963930196,1.47962649,668.79,668.38,0.47016661]
[1748963930891,1.47962649,668.79,668.36,0.47016661]
[1748963931288,1.47962649,668.79,668.18,0.29932054]
[1748963931289,1.47962649,668.79,668.35,0.47016661]
[1748963931492,1.47962649,668.78,668.35,0.47016661]
[1748963932097,1.47962649,668.78,668.38,0.47016661]
[1748963932299,1.47962649,668.78,668.39,0.47016661]
[1748963932596,1.47962649,668.77,668.36,0.47016661]
[1748963932798,1.47962649,668.88,668.18,0.29932054]
[1748963933398,0.26044493,669.84,668.18,0.29932054]
[1748963933399,1.47962649,668.87,668.18,0.29932054]
[1748963933899,1.47962649,668.86,668.18,0.29932054]
[1748963934301,1.47962649,668.85,668.18,0.29932054]
[1748963935300,1.47962649,668.84,668.18,0.29932054]
[1748963936097,1.47962649,668.85,668.18,0.29932054]
[1748963936300,1.47962649,668.84,668.18,0.29932054]
[1748963937203,0.26044493,669.84,668.18,0.29932054]
[1748963937204,1.47962649,668.87,668.18,0.29932054]
[1748963937405,1.47962649,668.86,668.18,0.29932054]
[1748963938599,1.47962649,668.85,668.18,0.29932054]
[1748963939304,1.47962649,668.79,668.18,0.29932054]
[1748963940501,1.47962649,668.76,668.18,0.29932054]
[1748963941305,1.47962649,668.75,668.18,0.29932054]
[1748963943302,1.47962649,668.74,668.18,0.29932054]
[1748963943804,1.47962649,668.76,668.18,0.29932054]
[1748963944006,1.47962649,668.77,668.18,0.29932054]
[1748963944205,1.47962649,668.76,668.18,0.29932054]
[1748963944601,1.47962649,668.77,668.18,0.29932054]
[1748963945204,2.21976402,668.94,668.18,0.29932054]
[1748963945205,1.47962649,668.76,668.18,0.29932054]
[1748963947105,1.47962649,668.74,668.18,0.29932054]
[1748963947304,1.47962649,668.73,668.18,0.29932054]
[1748963947505,1.47962649,668.74,668.18,0.29932054]
[1748963947905,1.47962649,668.73,668.18,0.29932054]
[1748963948505,1.47962649,668.72,668.18,0.29932054]
[1748963949510,1.47962649,668.74,668.18,0.76948715]
[1748963949712,1.47962649,668.75,668.2,0.47016661]
[1748963950312,1.47962649,668.74,668.2,0.47016661]
[1748963950812,1.47962649,668.69,668.43,0.47016661]
[1748963951313,1.47962649,668.68,668.42,0.47016661]
[1748963952108,1.47962649,668.67,668.42,0.47016661]
[1748963952515,1.47962649,668.68,668.41,0.47016661]
[1748963952908,1.47962649,668.63,668.55,0.47016661]
[1748963953111,1.47962649,668.63,668.52,0.47016661]
[1748963953312,1.47962649,668.63,668.51,0.47016661]
[1748963953512,5.21313565,669.64,668.46,0.47016661]
[1748963953513,1.47962649,668.65,668.46,0.47016661]
[1748963954611,1.47962649,668.65,668.45,0.47016661]
[1748963954814,1.47962649,668.64,668.45,0.47016661]
[1748963955009,5.21313565,669.55,668.45,0.47016661]
[1748963955010,1.47962649,668.63,668.45,0.47016661]
[1748963955214,1.47962649,668.94,668.18,0.29932054]
[1748963955411,1.47962649,668.95,668.18,0.29932054]
[1748963956211,1.47962649,668.97,668.19,1.07775517]
[1748963956414,1.47962649,668.97,668.2,0.29931158]
[1748963956814,1.47962649,668.97,668.21,1.07774509]
[1748963957010,1.47962649,668.97,668.22,1.37704957]
[1748963957212,1.49301647,668.96,668.23,0.29929814]
[1748963959518,1.49301647,668.88,668.23,0.29929814]
[1748963960418,0.26044493,669.84,668.23,0.29929814]
[1748963960419,1.49301647,668.83,668.23,0.29929814]
[1748963961019,1.49301647,668.79,668.23,0.29929814]
[1748963961220,1.49301647,668.8,668.23,0.29929814]
[1748963961422,1.49301647,668.81,668.23,0.29929814]
[1748963961617,1.49301647,668.94,668.23,0.29929814]
[1748963962019,1.49301647,668.95,668.24,0.71732385]
[1748963962214,1.49301647,668.95,668.25,1.37585312]
[1748963962413,1.49301647,668.97,668.25,0.29928918]
[1748963964320,1.49301647,668.97,668.26,1.07649043]
[1748963964520,0.26041569,669.89,668.27,0.29928023]
[1748963964521,1.49301647,668.98,668.27,0.29928023]
[1748963964720,1.49301647,668.97,668.27,0.29928023]
[1748963964922,1.49301647,668.97,668.28,1.07649257]
[1748963965122,1.49301647,668.97,668.29,0.29927127]
[1748963965422,1.49301647,668.98,668.29,0.29927127]
[1748963965718,1.49301647,668.97,668.29,0.29927127]
[1748963967619,1.49301647,668.95,668.3,1.07674268]
[1748963967923,1.49301647,668.95,668.0,1.10931043]
[1748963967924,1.49301647,668.95,668.31,0.29926231]
[1748963968119,1.49301647,668.94,668.31,0.29926231]
[1748963968322,1.49301647,668.95,668.32,1.07673324]
[1748963968523,1.49301647,668.95,668.33,0.29925336]
[1748963969125,1.49301647,668.92,668.33,0.29925336]
[1748963969321,1.49301647,668.91,668.33,0.29925336]
[1748963969526,1.49301647,668.92,668.33,0.29925336]
[1748963970128,1.49301647,668.9,668.33,0.29925336]
[1748963970724,0.26041569,669.89,668.33,0.29925336]
[1748963970725,1.49301647,668.91,668.33,0.29925336]
[1748963973623,1.49301647,668.92,668.33,0.29925336]
[1748963973928,0.26041569,669.89,668.34,0.47016661]
[1748963973929,1.49301647,668.89,668.34,0.47016661]
[1748963974127,1.49301647,668.89,668.34,0.76941549]
[1748963974529,1.49301647,668.89,668.35,0.47016661]
[1748963975627,1.49301647,668.9,668.35,0.47016661]
[1748963976131,1.49301647,668.9,668.36,0.47016661]
[1748963976527,1.49301647,668.9,668.37,1.07969783]
[1748963976724,1.49301647,668.9,668.38,1.07979049]
[1748963976926,1.49301647,668.9,668.36,0.47016661]
[1748963977530,1.49301647,668.9,668.36,0.29923993]
[1748963977730,1.49301647,668.93,668.37,1.07980736]
[1748963977932,1.49301647,668.91,668.38,1.07980443]
[1748963978128,1.49301647,668.91,668.36,0.76940654]
[1748963978327,1.49301647,668.91,668.37,0.47016661]
[1748963979035,1.49301647,668.91,668.38,1.07999868]
[1748963979231,1.49301647,668.91,668.39,1.0800099]
[1748963979435,1.49301647,668.91,668.37,0.47016661]
[1748963979436,1.49301647,669.02,668.37,0.47016661]
[1748963979636,1.49301647,669.01,668.36,0.29923993]
[1748963979830,1.49301647,669.01,668.37,1.07998844]
[1748963980031,1.49301647,669.01,668.36,0.29923993]
[1748963980235,1.49301647,669.01,668.37,1.07993438]
[1748963980537,1.49301647,669.01,668.36,0.29923993]
[1748963980733,1.49301647,669.01,668.37,1.07983524]
[1748963980931,1.49301647,669.01,668.36,0.29923993]
[1748963981337,1.49301647,669.01,668.37,1.07982608]
[1748963981538,1.49301647,669.01,668.36,0.29923993]
[1748963982138,1.49301647,669.01,668.37,1.07982328]
[1748963982338,1.49301647,669.01,668.36,0.29923993]
[1748963983139,1.49301647,669.01,668.37,1.07981908]
[1748963983341,1.49301647,669.01,668.36,0.29923993]
[1748963983736,1.49301647,669.01,668.37,1.07981319]
[1748963983942,1.49301647,669.0,668.36,0.29923993]
[1748963984137,1.49301647,669.0,668.37,1.07981136]
[1748963984338,1.49301647,669.0,668.38,1.0798175]
[1748963984644,1.49301647,669.0,668.36,0.29923993]
[1748963984844,1.49301647,669.0,668.37,1.07981786]
[1748963985044,1.49301647,669.0,668.36,0.29923993]
[1748963985343,1.49301647,669.0,668.37,1.07981248]
[1748963985544,1.49301647,669.0,668.36,0.29923993]
[1748963985746,1.49301647,669.0,668.37,1.07981525]
[1748963985945,1.49301647,669.0,668.36,0.29923993]
[1748963986337,2.23952471,669.19,668.36,0.29923993]
[1748963986541,1.48835497,669.0,668.36,0.29923993]
[1748963987545,1.48835497,668.99,668.36,0.29923993]
[1748963988246,1.48835497,668.82,668.67,0.47016661]
[1748963988440,1.48835497,668.83,668.69,0.47016661]
[1748963989443,1.48835497,668.83,668.7,0.47016661]
[1748963989843,1.48835497,668.84,668.67,0.47016661]
[1748963990445,1.48835497,668.83,668.69,0.47016661]
[1748963991045,3.72366832,669.42,668.36,0.29923993]
[1748963991046,1.48835497,669.04,668.36,0.29923993]
[1748963991654,1.48835497,669.04,668.37,1.07993508]
[1748963991941,1.48835497,669.04,668.38,0.29923097]
[1748963992146,1.48835497,669.04,668.39,1.07994259]
[1748963992344,1.48835497,669.04,668.38,0.29923097]
[1748963992345,1.48835497,669.04,668.4,0.29922202]
[1748963993146,1.48835497,669.04,668.41,1.0800457]
[1748963993540,1.48835497,669.04,668.4,0.29922202]
[1748963993942,1.48835497,669.05,668.4,0.29922202]
[1748963994347,1.48835497,669.05,668.41,1.08000932]
[1748963994544,1.48835497,669.05,668.4,0.29922202]
[1748963994848,1.48835497,669.05,668.41,1.08002212]
[1748963995347,1.48835497,669.04,668.4,0.29922202]
[1748963996245,1.48835497,669.04,668.41,1.08009421]
[1748963996443,1.48835497,669.04,668.42,1.08010659]
[1748963996646,1.48835497,669.04,668.4,0.29922202]
[1748963996842,1.48835497,669.04,668.41,1.08012097]
[1748963997143,1.48835497,669.04,668.4,0.29922202]
[1748963997348,1.48835497,669.03,668.4,0.29922202]
[1748963997544,1.48835497,669.04,668.4,0.29922202]
[1748963997742,1.48835497,669.03,668.41,1.08009461]
[1748963997942,1.48835497,669.03,668.4,0.29922202]
[1748963998148,1.48835497,669.04,668.4,0.29922202]
[1748963999045,1.48835497,669.03,668.4,0.29922202]
[1748963999244,1.48835497,669.04,668.4,0.29922202]
[1748963999547,1.48835497,669.04,668.41,1.08008808]
[1748963999746,1.48835497,669.04,668.42,0.29921306]
[1748963999943,1.48835497,669.04,668.43,1.08009608]
[1748964000147,1.48835497,669.04,668.42,0.29921306]
[1748964000343,1.48835497,669.04,668.43,1.08007357]
[1748964000654,1.48835497,669.04,668.42,0.29921306]
[1748964000849,1.48835497,668.96,668.42,0.29921306]
[1748964001050,1.48835497,668.96,668.43,1.08007477]
[1748964001250,1.48835497,668.97,668.42,0.29921306]
[1748964001444,1.48835497,668.96,668.42,0.29921306]
[1748964001857,1.48835497,668.98,668.42,0.29921306]
[1748964002052,1.48835497,669.06,668.42,0.29921306]
[1748964002344,1.48835497,669.06,668.43,0.71948027]
[1748964002650,1.48835497,669.06,668.42,0.29921306]
[1748964002651,1.48835497,669.06,668.44,0.29920411]
[1748964002844,1.48835497,669.07,668.45,1.07951649]
[1748964003046,1.48835497,669.07,668.46,0.29919516]
[1748964003249,1.48835497,669.07,668.47,1.07944925]
[1748964003444,1.48835497,669.07,668.46,0.29919516]
[1748964003747,1.48835497,669.08,668.46,0.29919516]
[1748964003947,1.48835497,669.08,668.47,1.07917024]
[1748964004146,1.48835497,669.08,668.48,0.29918621]
[1748964005046,1.48835497,669.06,668.49,1.07899059]
[1748964005252,1.48835497,669.08,668.6,0.47016661]
[1748964005445,1.48835497,669.01,668.88,0.47016661]
[1748964005845,1.48835497,669.03,668.84,0.47016661]
[1748964006047,1.48835497,669.03,668.86,0.47016661]
[1748964006252,1.48835497,669.02,668.81,0.47016661]
[1748964006448,1.48835497,669.03,668.67,0.47016661]
[1748964006848,3.72366832,669.73,668.5,0.29917726]
[1748964006849,1.48835497,669.05,668.61,0.47016661]
[1748964007248,1.48835497,669.04,668.58,0.47016661]
[1748964007555,1.48835497,668.92,668.5,0.29917726]
[1748964007749,1.48835497,668.93,668.5,0.29917726]
[1748964007954,1.48835497,668.92,668.5,0.29917726]
[1748964008156,1.48835497,668.94,668.5,0.29917726]
[1748964008354,1.48835497,668.95,668.5,0.29917726]
[1748964008556,1.48835497,668.9,668.5,0.29917726]
[1748964008952,1.48835497,668.88,668.5,0.29917726]
[1748964009153,1.48835497,668.85,668.5,0.29917726]
[1748964009455,1.48835497,668.79,668.5,0.29917726]
[1748964009849,1.48835497,668.8,668.5,0.29917726]
[1748964010053,1.48835497,668.79,668.5,0.29917726]
[1748964010249,1.48835497,668.9,668.5,0.29917726]
[1748964010448,1.48835497,668.84,668.5,0.29917726]
[1748964010656,1.48835497,668.77,668.5,0.29917726]
[1748964010955,1.48835497,668.9,668.5,0.29917726]
[1748964011155,1.48835497,668.89,668.5,0.29917726]
[1748964011754,1.48835497,668.9,668.5,0.29917726]
[1748964012055,1.48835497,668.89,668.5,0.29917726]
[1748964012857,1.48835497,668.9,668.5,0.29917726]
[1748964014257,1.48835497,668.92,668.5,0.29917726]
[1748964014562,1.48835497,668.91,668.5,0.29917726]
[1748964015362,1.48835497,669.0,668.5,0.29917726]
[1748964015557,3.72366832,670.1,668.5,0.29917726]
[1748964015558,1.48835497,669.02,668.5,0.29917726]
[1748964015753,0.2603475,670.14,668.5,0.29917726]
[1748964015754,1.48835497,669.01,668.5,0.29917726]
[1748964016258,1.48835497,669.02,668.5,0.29917726]
[1748964016455,3.72366832,670.11,668.5,0.29917726]
[1748964016456,1.48835497,668.93,668.5,0.29917726]
[1748964017260,1.48835497,668.94,668.5,0.29917726]
[1748964017866,1.48835497,668.93,668.5,0.29917726]
[1748964018570,1.48835497,668.95,668.5,0.29917726]
[1748964018771,1.48835497,668.98,668.5,0.29917726]
[1748964018970,1.48835497,668.97,668.5,0.29917726]
[1748964019171,1.48835497,668.98,668.5,0.29917726]
[1748964020072,1.48835497,668.93,668.5,0.29917726]
[1748964020372,1.48835497,668.92,668.5,0.29917726]
[1748964020871,1.48835497,668.93,668.5,0.29917726]
[1748964021268,1.48835497,668.93,668.51,1.07900563]
[1748964021469,1.48835497,668.93,668.5,0.29917726]
[1748964021871,1.48835497,668.93,668.51,1.07899813]
[1748964022072,1.48835497,668.93,668.5,0.29917726]
[1748964022768,1.48835497,668.93,668.51,1.07901189]
[1748964023072,1.48835497,668.92,668.5,0.29917726]
[1748964023268,1.48835497,668.87,668.53,0.47016661]
[1748964023470,1.48835497,668.87,668.51,0.47016661]
[1748964023973,1.48835497,668.84,668.6,0.47016661]
[1748964024269,1.48835497,668.83,668.62,0.47016661]
[1748964024670,1.48835497,668.82,668.63,0.47016661]
[1748964024873,1.48835497,668.84,668.63,0.47016661]
[1748964025373,1.48835497,668.85,668.61,0.47016661]
[1748964026173,1.48835497,668.86,668.62,0.47016661]
[1748964026367,1.48835497,668.86,668.6,0.47016661]
[1748964027073,1.48835497,668.85,668.6,0.47016661]
[1748964027472,1.48835497,668.86,668.6,0.47016661]
[1748964027673,1.48835497,668.86,668.58,0.47016661]
[1748964027873,1.48835497,668.86,668.5,0.29917726]
[1748964027874,1.48835497,668.88,668.59,0.47016661]
[1748964028773,1.48835497,668.89,668.6,0.47016661]
[1748964029173,1.48835497,668.88,668.6,0.47016661]
[1748964029373,1.48835497,668.88,668.61,0.47016661]
[1748964029774,1.48835497,668.89,668.58,0.47016661]
[1748964030476,1.48835497,668.88,668.62,0.47016661]
[1748964030675,3.72366832,669.54,668.6,0.47016661]
[1748964030676,1.48835497,668.86,668.6,0.47016661]
[1748964031076,1.48835497,668.87,668.61,0.47016661]
[1748964031872,1.48835497,668.9,668.5,0.76934387]
[1748964032474,1.48835497,668.91,668.51,0.47016661]
[1748964034183,1.48835497,668.95,668.5,0.29917726]
[1748964035383,1.48835497,668.95,668.51,1.07788518]
[1748964035583,1.48835497,668.95,668.5,0.29917726]
[1748964036588,1.48835497,668.92,668.5,0.29917726]
[1748964036790,3.72366832,669.71,668.5,0.29917726]
[1748964036791,1.48835497,668.93,668.5,0.29917726]
[1748964036981,1.48835497,668.92,668.5,0.29917726]
[1748964037185,1.48835497,668.93,668.5,0.29917726]
[1748964037385,1.48835497,668.91,668.5,0.29917726]
[1748964037988,1.48835497,668.84,668.5,0.29917726]
[1748964038187,1.48835497,668.81,668.5,0.29917726]
[1748964038387,2.23952471,668.95,668.5,0.29917726]
[1748964038388,1.48835497,668.79,668.5,0.29917726]
[1748964038585,1.48835497,668.78,668.5,0.29917726]
[1748964039186,1.48835497,668.72,668.5,0.29917726]
[1748964039786,1.48835497,668.73,668.5,0.29917726]
[1748964041186,1.48835497,668.73,668.5,0.76934387]
[1748964043090,1.48835497,668.72,668.52,0.47016661]
[1748964044186,1.48835497,668.73,668.52,0.47016661]
[1748964046187,1.48835497,668.74,668.51,0.47016661]
[1748964046494,1.48835497,668.74,668.5,0.29917726]
[1748964046495,1.48835497,668.75,668.5,0.29917726]
[1748964048087,1.48835497,668.73,668.54,0.47016661]
[1748964048291,1.48835497,668.73,668.5,0.29917726]
[1748964048292,1.48835497,668.73,668.55,0.47016661]
[1748964049196,1.48835497,668.72,668.57,0.47016661]
[1748964049996,1.48835497,668.73,668.56,0.47016661]
[1748964050397,1.48835497,668.75,668.51,0.47016661]
[1748964050599,1.48835497,668.76,668.52,0.47016661]
[1748964050895,1.48835497,668.76,668.51,0.47016661]
[1748964051094,1.48835497,668.75,668.51,0.47016661]
[1748964051695,1.48835497,668.75,668.5,0.76934387]
[1748964052801,1.48835497,668.76,668.5,0.76934387]
[1748964052998,1.48835497,668.75,668.5,0.76934387]
[1748964053599,1.48835497,668.77,668.52,0.47016661]
[1748964053801,1.48835497,668.76,668.51,0.47016661]
[1748964054103,1.48835497,668.77,668.5,0.29917726]
[1748964056496,3.72366832,669.41,668.5,0.29917726]
[1748964056497,1.48835497,668.78,668.5,0.29917726]
[1748964056702,1.48835497,668.86,668.5,0.29917726]
[1748964057203,1.48835497,668.81,668.5,0.76934387]
[1748964057801,1.48835497,668.82,668.5,0.76934387]
[1748964058000,1.48835497,668.8,668.52,0.47016661]
[1748964059195,1.48835497,668.8,668.53,0.47016661]
[1748964059596,1.48835497,668.79,668.53,0.47016661]
[1748964059997,1.48835497,668.79,668.52,0.47016661]
[1748964061003,1.48835497,668.79,668.53,0.47016661]
[1748964061503,5.21313565,669.67,668.6,0.47016661]
[1748964061504,1.48835497,668.77,668.6,0.47016661]
[1748964062399,2.23952471,668.88,668.6,0.47016661]
[1748964062400,1.48835497,668.76,668.6,0.47016661]
[1748964063208,1.48835497,668.76,668.61,0.47016661]
[1748964063600,1.48835497,668.77,668.61,0.47016661]
[1748964064203,1.48835497,668.76,668.62,0.47016661]
[1748964064402,1.48835497,668.78,668.57,0.47016661]
[1748964065210,1.48835497,668.78,668.58,0.47016661]
[1748964065409,1.48835497,668.77,668.58,0.47016661]
[1748964065709,1.48835497,668.75,668.53,0.47016661]
[1748964066011,1.48835497,668.75,668.52,0.47016661]
[1748964066204,2.23952471,668.87,668.53,0.47016661]
[1748964066205,1.48835497,668.74,668.53,0.47016661]
[1748964066407,1.48835497,668.74,668.52,0.47016661]
[1748964067112,1.49153039,668.74,668.53,0.47016661]
[1748964067811,1.49153039,668.74,668.54,0.47016661]
[1748964068012,1.49153039,668.73,668.54,0.47016661]
[1748964068306,1.49153039,668.75,668.52,0.47016661]
[1748964069105,1.49153039,668.74,668.52,0.47016661]
[1748964069308,1.49153039,668.79,668.5,0.29917726]
[1748964072812,1.49153039,668.81,668.5,0.29917726]
[1748964073909,1.49153039,668.8,668.5,0.29917726]
[1748964077115,1.49153039,668.79,668.5,0.29917726]
[1748964077311,1.49153039,668.8,668.5,0.29917726]
[1748964077712,1.49153039,668.81,668.5,0.29917726]
[1748964079115,1.49153039,668.79,668.5,0.29917726]
[1748964079315,1.49153039,668.8,668.5,0.29917726]
[1748964080115,1.49153039,668.81,668.5,0.29917726]
[1748964080314,1.49153039,668.8,668.5,0.29917726]
[1748964080516,5.21313565,669.9,668.5,0.29917726]
[1748964080517,1.49153039,668.81,668.5,0.29917726]
[1748964080913,1.49153039,668.8,668.5,0.29917726]
[1748964081119,1.49153039,668.81,668.5,0.29917726]
[1748964081319,1.49153039,668.8,668.5,0.29917726]
[1748964082716,1.49153039,668.78,668.5,0.29917726]
[1748964082919,1.49153039,668.79,668.5,0.29917726]
[1748964083318,1.49153039,668.78,668.5,0.29917726]
[1748964084223,1.49153039,668.79,668.5,0.29917726]
[1748964086520,1.49153039,668.78,668.5,0.29917726]
[1748964087018,1.49153039,668.88,668.5,0.29917726]
[1748964087619,1.49153039,668.87,668.5,0.29917726]
[1748964088218,1.49153039,668.86,668.5,0.29917726]
[1748964089328,1.49153039,668.85,668.5,0.29917726]
[1748964090431,1.49153039,668.84,668.5,0.29917726]
[1748964092230,1.49153039,668.83,668.5,0.29917726]
[1748964093232,1.49153039,668.82,668.5,0.29917726]
[1748964093527,1.49153039,668.81,668.5,0.29917726]
[1748964094132,1.49153039,668.8,668.5,0.29917726]
[1748964094331,1.49153039,668.81,668.5,0.29917726]
[1748964095331,1.49153039,668.8,668.5,0.29917726]
[1748964095928,1.49153039,668.81,668.5,0.29917726]
[1748964096325,1.49153039,668.8,668.5,0.29917726]
[1748964097033,1.49153039,668.75,668.5,0.29917726]
[1748964097231,1.49153039,668.74,668.5,0.29917726]
[1748964097929,1.49153039,668.75,668.5,0.29917726]
[1748964098131,1.49153039,668.74,668.5,0.29917726]
[1748964099128,1.49153039,668.72,668.5,0.76934387]
[1748964099432,1.49153039,668.75,668.5,0.29917726]
[1748964100331,1.49153039,668.74,668.5,0.29917726]
[1748964100534,1.49153039,668.75,668.5,0.29917726]
[1748964103028,1.49153039,668.76,668.5,0.29917726]
[1748964104237,1.49153039,668.75,668.5,0.29917726]
[1748964105038,1.49153039,668.74,668.5,0.29917726]
[1748964105737,1.49153039,668.73,668.5,0.29917726]
[1748964108336,1.49153039,668.72,668.5,0.29917726]
[1748964108732,1.49153039,668.71,668.5,0.29917726]
[1748964109239,1.49153039,668.66,668.61,0.47016661]
[1748964109636,1.49153039,668.65,668.59,0.47016661]
[1748964109937,1.49153039,668.65,668.6,0.47016661]
[1748964110237,1.49153039,668.65,668.59,0.47016661]
[1748964110438,1.49153039,668.64,668.61,0.47016661]
[1748964111733,1.49153039,668.64,668.62,0.47016661]
[1748964112234,1.49153039,668.64,668.63,0.47016661]
[1748964112838,1.49153039,668.64,668.62,0.47016661]
[1748964113040,2.23952471,668.73,668.5,0.29917726]
[1748964113340,1.49477616,668.62,668.5,0.29917726]
[1748964113541,1.49477616,668.6,668.5,0.29917726]
[1748964114837,1.49477616,668.61,668.5,0.29917726]
[1748964115041,1.49477616,668.6,668.5,0.29917726]
[1748964116240,1.49477616,668.61,668.5,0.29917726]
[1748964119938,1.49477616,668.6,668.5,0.29917726]
[1748964120143,1.49477616,668.61,668.5,0.29917726]
[1748964120747,1.49477616,668.6,668.5,0.29917726]
[1748964121745,1.49477616,668.63,668.5,0.29917726]
[1748964121948,1.49477616,668.63,668.62,0.47146304]
[1748964122344,1.49477616,668.63,668.5,0.29917726]
[1748964122345,1.49477616,668.66,668.5,0.29917726]
[1748964122540,1.49477616,668.66,668.65,0.47142977]
[1748964123142,1.49477616,668.67,668.5,0.29917726]
[1748964123347,1.49477616,668.69,668.64,0.4714052]
[1748964123740,5.21313565,669.56,668.5,0.29917726]
[1748964123741,1.49477616,668.72,668.55,0.4714052]
[1748964123941,1.49477616,668.72,668.56,0.4714052]
[1748964124345,1.49477616,668.75,668.5,0.29917726]
[1748964125148,1.49477616,668.76,668.5,0.29917726]
[1748964126048,1.49477616,668.78,668.5,0.29917726]
[1748964126949,1.49477616,668.8,668.5,0.29917726]
[1748964127549,1.49477616,668.81,668.5,0.29917726]
[1748964128051,1.49477616,668.88,668.5,0.29917726]
[1748964128350,2.23952471,669.04,668.5,0.29917726]
[1748964128351,1.49477616,668.87,668.5,0.29917726]
[1748964128548,1.49477616,668.88,668.5,0.29917726]
[1748964128749,1.49477616,668.87,668.5,0.29917726]
[1748964131148,1.49477616,668.71,668.67,0.4714052]
[1748964131351,1.49477616,668.7,668.67,0.4714052]
[1748964132049,1.49477616,668.71,668.67,0.4714052]
[1748964132249,1.49477616,668.7,668.67,0.4714052]
[1748964132754,1.49477616,668.74,668.56,0.4714052]
[1748964133652,2.23952471,668.88,668.56,0.4714052]
[1748964133653,1.49477616,668.75,668.56,0.4714052]
[1748964134149,1.49477616,668.75,668.5,0.29917726]
[1748964134150,1.49477616,668.81,668.5,0.29917726]
[1748964136650,1.49477616,668.82,668.5,0.29917726]
[1748964137056,1.49477616,668.81,668.5,0.29917726]
[1748964139354,3.72366832,669.59,668.5,0.29917726]
[1748964139355,1.49477616,668.82,668.5,0.29917726]
[1748964139957,1.49477616,668.83,668.5,0.29917726]
[1748964140158,5.21313565,669.96,668.5,0.29917726]
[1748964140159,1.49477616,668.84,668.5,0.29917726]
[1748964140852,1.49477616,668.83,668.5,0.29917726]
[1748964141757,1.49477616,668.84,668.5,0.29917726]
[1748964142556,1.49477616,668.83,668.5,0.29917726]
[1748964144057,1.49477616,668.8,668.5,0.29917726]
[1748964144459,1.49477616,668.79,668.5,0.29917726]
[1748964144860,1.49477616,668.81,668.51,0.4714052]
[1748964145257,1.49477616,668.81,668.52,0.4714052]
[1748964145454,1.49477616,668.81,668.53,0.4714052]
[1748964146263,5.21313565,669.79,668.5,0.29917726]
[1748964146264,1.49477616,668.8,668.52,0.4714052]
[1748964146858,1.49477616,668.81,668.5,0.77058246]
[1748964147163,1.49477616,668.85,668.51,0.4714052]
[1748964147363,1.49477616,668.86,668.5,0.77058246]